fUSD/lending_fUSD_20260324
["ID","MTS","AMOUNT","RATE_DAILY","PERIOD"]
[408852646,1774341517788,-3240.0,0.00014211,2]
[408852647,1774341517808,-150.0,0.00014232,2]
[408852648,1774341517829,-486.03822405,0.00014233,2]
[408852649,1774341517850,-371.24377777,0.00014271,2]
[408852650,1774341517871,-486.03822405,0.00014567,2]
[408852651,1774341517892,-486.03822405,0.000149,2]
[408852652,1774341517914,-486.03822405,0.00015233,2]
[408852653,1774341517934,-500.0,0.00015272,2]
[408852654,1774341517955,-587.0,0.00015413,2]
[408852655,1774341517975,-6133.48,0.00015564,2]
[408852656,1774341517996,-486.03822405,0.00015567,2]
[408852657,1774341518017,-486.03822405,0.000159,2]
[408852658,1774341518039,-500.0,0.00015999,2]
[408852659,1774341518059,-500.0,0.00015999,2]
[408852660,1774341518079,-500.0,0.00015999,2]
[408852661,1774341518100,-311.47890882,0.00015999,2]
[408852662,1774341518121,-500.0,0.00015999,2]
[408852663,1774341518142,-405.4389704,0.00015999,2]
[408852664,1774341518170,-527.85063655,0.00015999,2]
[408852665,1774341518194,-527.85063655,0.00015999,2]
[408852666,1774341518220,-527.85063655,0.00015999,2]
[408852667,1774341518244,-527.85063655,0.00015999,2]
[408852668,1774341518267,-527.85063655,0.00015999,2]
[408852669,1774341518291,-527.85063655,0.00015999,2]
[408852670,1774341518315,-527.85063655,0.00015999,2]
[408852671,1774341518338,-527.85063655,0.00015999,2]
[408852672,1774341518361,-527.85063655,0.00015999,2]
[408852673,1774341518384,-527.85063655,0.00015999,2]
[408852674,1774341518407,-527.85063655,0.00015999,2]
[408852675,1774341518431,-527.85063655,0.00015999,2]
[408852676,1774341518454,-527.85063655,0.00015999,2]
[408852677,1774341518476,-527.85063655,0.00015999,2]
[408852678,1774341518499,-441.49077609,0.00015999,2]
[408852682,1774341569193,683.1,8.052e-05,2]
[408852683,1774341569388,683.1,8.476e-05,2]
[408852684,1774341569591,683.1,8.9e-05,2]
[408852685,1774341569793,683.1,9.323e-05,2]
[408852686,1774341635148,-5181.5339954,0.00047143,10]
[408852687,1774341635204,-5712.72636629,0.00047143,15]
[408852688,1774341635262,-1638.91401964,0.00047143,10]
[408852689,1774341635290,-737.28854477,0.00047143,10]
[408852690,1774341635318,-1034.10576773,0.00047143,20]
[408852691,1774341635349,-1000.0,0.00047143,10]
[408852692,1774341635377,-500.0,0.00047143,10]
[408852693,1774341635413,-521.01685962,0.00047143,14]
[408852694,1774341635441,-43523.06694669,0.00047143,15]
[408852695,1774341635468,-85817.89178807,0.00047143,20]
[408852696,1774341635496,-111547.83,0.00047143,25]
[408852697,1774341635545,-500.0,0.00047143,120]
[408852698,1774341635577,-583.11730973,0.00047143,120]
[408852699,1774341635607,-432.37889649,0.00047143,120]
[408852700,1774341635653,-173.75443254,0.00047143,120]
[408852701,1774341635699,-227.96940149,0.00047143,120]
[408852702,1774341635737,-500.0,0.00047143,120]
[408852703,1774341635765,-500.0,0.00047143,120]
[408852704,1774341635793,-500.0,0.00047143,120]
[408852705,1774341635824,-500.0,0.00047143,120]
[408852706,1774341635853,-500.0,0.00047143,120]
[408852707,1774341635881,-500.0,0.00047143,120]
[408852708,1774341635912,-500.0,0.00047143,120]
[408852709,1774341635941,-500.0,0.00047143,120]
[408852710,1774341635976,-500.0,0.00047143,120]
[408852711,1774341636008,-500.0,0.00047143,120]
[408852712,1774341636037,-500.0,0.00047143,120]
[408852713,1774341636077,-500.0,0.00047143,120]
[408852714,1774341636121,-500.0,0.00047143,120]
[408852715,1774341636152,-500.0,0.00047143,120]
[408852716,1774341636188,-500.0,0.00047143,120]
[408852717,1774341636231,-500.0,0.00047143,120]
[408852718,1774341636271,-500.0,0.00047143,120]
[408852719,1774341636305,-500.0,0.00047143,120]
[408852720,1774341636335,-500.0,0.00047143,120]
[408852721,1774341636365,-500.0,0.00047143,120]
[408852722,1774341636396,-500.0,0.00047143,120]
[408852723,1774341636424,-500.0,0.00047143,120]
[408852724,1774341636461,-500.0,0.00047143,120]
[408852725,1774341636497,-500.0,0.00047143,120]
[408852726,1774341636533,-500.0,0.00047143,120]
[408852727,1774341636561,-500.0,0.00047143,120]
[408852728,1774341636592,-500.0,0.00047143,120]
[408852729,1774341636634,-500.0,0.00047143,120]
[408852730,1774341636662,-500.0,0.00047143,120]
[408852731,1774341636693,-500.0,0.00047143,120]
[408852732,1774341636736,-500.0,0.00047143,120]
[408852733,1774341636770,-500.0,0.00047143,120]
[408852734,1774341636809,-500.0,0.00047143,120]
[408852735,1774341636841,-500.0,0.00047143,120]
[408852736,1774341636871,-500.0,0.00047143,120]
[408852737,1774341636902,-500.0,0.00047143,120]
[408852738,1774341636935,-500.0,0.00047143,120]
[408852739,1774341636968,-500.0,0.00047143,120]
[408852740,1774341637012,-500.0,0.00047143,120]
[408852741,1774341637040,-500.0,0.00047143,120]
[408852742,1774341637071,-500.0,0.00047143,120]
[408852743,1774341637105,-500.0,0.00047143,120]
[408852744,1774341637135,-500.0,0.00047143,120]
[408852745,1774341637162,-3354.21702968,0.00047143,30]
[408852746,1774341637195,-500.0,0.00047143,120]
[408852747,1774341637232,-412.25099181,0.00047143,120]
[408852748,1774341637262,-697.96,0.00047143,120]
[408852749,1774341637319,-697.96,0.00047143,120]
[408852750,1774341637368,-697.96,0.00047143,120]
[408852751,1774341637403,-697.96,0.00047143,120]
[408852752,1774341637441,-697.96,0.00047143,120]
[408852753,1774341637499,-697.96,0.00047143,120]
[408852754,1774341637548,-2330.0,0.00047143,30]
[408852755,1774341637597,-697.96,0.00047143,120]
[408852756,1774341637951,-697.96,0.00047143,120]
[408852757,1774341637983,-697.96,0.00047143,120]
[408852758,1774341638010,-697.96,0.00047143,120]
[408852759,1774341638036,-697.96,0.00047143,120]
[408852760,1774341638063,-697.96,0.00047143,120]
[408852761,1774341638092,-697.96,0.00047143,120]
[408852762,1774341638133,-697.96,0.00047143,120]
[408852763,1774341638161,-697.96,0.00047143,120]
[408852764,1774341638193,-697.96,0.00047143,120]
[408852765,1774341638227,-697.96,0.00047143,120]
[408852766,1774341638255,-697.96,0.00047143,120]
[408852767,1774341638294,-697.96,0.00047143,120]
[408852768,1774341638321,-697.96,0.00047143,120]
[408852769,1774341638351,-697.96,0.00047143,120]
[408852770,1774341638386,-697.96,0.00047143,120]
[408852771,1774341638419,-697.96,0.00047143,120]
[408852772,1774341638447,-697.98513127,0.00047143,120]
[408852773,1774341638475,-3706.10711233,0.00047143,120]
[408852774,1774341638502,-181.65823268,0.00047143,30]
[408852775,1774341638555,-222.53419399,0.00047143,120]
[408852776,1774341638584,-500.0,0.00047143,120]
[408852777,1774341638621,-500.0,0.00047143,120]
[408852778,1774341638654,-500.0,0.00047143,120]
[408852779,1774341638698,-500.0,0.00047143,120]
[408852780,1774341638727,-500.0,0.00047143,120]
[408852781,1774341638754,-500.0,0.00047143,120]
[408852782,1774341638782,-500.0,0.00047143,120]
[408852783,1774341638811,-623.86843028,0.00047143,120]
[408852784,1774341638840,-251.14302961,0.00047143,120]
[408852785,1774341638872,-500.0,0.00047143,120]
[408852786,1774341638904,-500.0,0.00047143,120]
[408852787,1774341638939,-502.24211836,0.00047143,120]
[408852788,1774341638973,-500.0,0.00047143,120]
[408852789,1774341639009,-500.0,0.00047143,120]
[408852790,1774341639038,-199.21571964,0.00047143,120]
[408852791,1774341639075,-292.87283363,0.00047143,30]
[408852792,1774341639109,-2516.0,0.00047143,120]
[408852793,1774341639140,-500.0,0.00047143,120]
[408852794,1774341639169,-568.45248935,0.00047143,120]
[408852795,1774341639203,-500004.77350597,0.00047143,60]
[408852796,1774341639241,-500.0,0.00047143,120]
[408852797,1774341639270,-500.0,0.00047143,120]
[408852798,1774341639317,-568.29889713,0.00047143,120]
[408852799,1774341639345,-500.0,0.00047143,120]
[408852800,1774341639373,-500.0,0.00047143,120]
[408852801,1774341639401,-645.84023755,0.00047143,120]
[408852802,1774341639436,-1500.0,0.00047143,120]
[408852803,1774341639467,-180.0,0.00047143,120]
[408852804,1774341639496,-500.0,0.00047143,120]
[408852805,1774341639531,-500.0,0.00047143,120]
[408852806,1774341639565,-500.0,0.00047143,120]
[408852807,1774341639594,-500.0,0.00047143,120]
[408852808,1774341639625,-500.0,0.00047143,120]
[408852809,1774341639656,-500.0,0.00047143,120]
[408852810,1774341639694,-500.0,0.00047143,120]
[408852811,1774341639722,-500.0,0.00047143,120]
[408852812,1774341639751,-500.0,0.00047143,120]
[408852813,1774341639779,-500.0,0.00047143,120]
[408852814,1774341639819,-500.0,0.00047143,120]
[408852815,1774341639846,-500.0,0.00047143,120]
[408852816,1774341639878,-500.0,0.00047143,120]
[408852817,1774341639924,-500.0,0.00047143,120]
[408852818,1774341639956,-500.0,0.00047143,120]
[408852819,1774341639999,-500.0,0.00047143,120]
[408852820,1774341640035,-500.0,0.00047143,120]
[408852821,1774341640063,-500.0,0.00047143,120]
[408852822,1774341640090,-500.0,0.00047143,120]
[408852823,1774341640118,-500.0,0.00047143,120]
[408852824,1774341640148,-173.67,0.00047143,120]
[408852825,1774341640180,-200.0,0.00047143,120]
[408852826,1774341640217,-200.0,0.00047143,120]
[408852827,1774341640250,-200.0,0.00047143,120]
[408852828,1774341640294,-200.0,0.00047143,120]
[408852829,1774341640327,-200.0,0.00047143,120]
[408852830,1774341640357,-200.0,0.00047143,120]
[408852831,1774341640388,-200.0,0.00047143,120]
[408852832,1774341640415,-200.0,0.00047143,120]
[408852833,1774341640460,-200.0,0.00047143,120]
[408852834,1774341640490,-200.0,0.00047143,120]
[408852835,1774341640518,-200.0,0.00047143,120]
[408852836,1774341640553,-200.0,0.00047143,120]
[408852837,1774341640591,-200.0,0.00047143,120]
[408852838,1774341640635,-200.0,0.00047143,120]
[408852839,1774341640670,-277.56603511,0.00047143,120]
[408852840,1774341640711,-226.1,0.00047143,120]
[408852841,1774341640742,-546.01240034,0.00047143,120]
[408852842,1774341640775,-200.0,0.00047143,120]
[408852843,1774341640814,-200.0,0.00047143,120]
[408852844,1774341640845,-200.0,0.00047143,120]
[408852845,1774341640877,-780.4393731,0.00047143,30]
[408852846,1774341640914,-279.86892042,0.00047143,60]
[408852847,1774341640952,-183.43957999,0.00047143,120]
[408852848,1774341640991,-933.70977989,0.00047143,120]
[408852849,1774341641034,-500.0,0.00047143,120]
[408852850,1774341641068,-500.0,0.00047143,120]
[408852851,1774341641107,-500.0,0.00047143,120]
[408852852,1774341641143,-342.58042671,0.00047143,120]
[408852853,1774341641178,-500.0,0.00047143,120]
[408852854,1774341641211,-1000.0,0.00047143,31]
[408852855,1774341641252,-500.0,0.00047143,120]
[408852856,1774341641286,-1000.0,0.00047143,31]
[408852857,1774341641323,-500.0,0.00047143,120]
[408852858,1774341641356,-1000.0,0.00047143,31]
[408852859,1774341641393,-500.0,0.00047143,120]
[408852860,1774341641427,-1000.0,0.00047143,31]
[408852861,1774341641460,-500.0,0.00047143,120]
[408852862,1774341641496,-500.0,0.00047143,120]
[408852863,1774341641529,-1000.0,0.00047143,31]
[408852864,1774341641568,-500.0,0.00047143,120]
[408852865,1774341641600,-1000.0,0.00047143,31]
[408852866,1774341641644,-500.0,0.00047143,120]
[408852867,1774341641679,-1000.0,0.00047143,31]
[408852868,1774341641714,-500.0,0.00047143,120]
[408852869,1774341641756,-1000.0,0.00047143,31]
[408852870,1774341641791,-500.0,0.00047143,120]
[408852871,1774341641833,-1000.0,0.00047143,31]
[408852872,1774341641867,-500.0,0.00047143,120]
[408852873,1774341641896,-1000.0,0.00047143,31]
[408852874,1774341641928,-500.0,0.00047143,120]
[408852875,1774341641972,-1000.0,0.00047143,31]
[408852876,1774341642007,-155.86569441,0.00047143,120]
[408852877,1774341642038,-1000.0,0.00047143,31]
[408852878,1774341642067,-1000.0,0.00047143,31]
[408852879,1774341642106,-1000.0,0.00047143,31]
[408852880,1774341642141,-1000.0,0.00047143,31]
[408852881,1774341642174,-1000.0,0.00047143,31]
[408852882,1774341642207,-1000.0,0.00047143,31]
[408852883,1774341642245,-1000.0,0.00047143,31]
[408852884,1774341642284,-1000.0,0.00047143,31]
[408852885,1774341642319,-1000.0,0.00047143,31]
[408852886,1774341642355,-1000.0,0.00047143,31]
[408852887,1774341642394,-1000.0,0.00047143,31]
[408852888,1774341642429,-1000.0,0.00047143,31]
[408852889,1774341642462,-1000.0,0.00047143,31]
[408852890,1774341642494,-1000.0,0.00047143,31]
[408852891,1774341642530,-1000.0,0.00047143,31]
[408852892,1774341642564,-1000.0,0.00047143,31]
[408852893,1774341642599,-1000.0,0.00047143,31]
[408852894,1774341642644,-1000.0,0.00047143,31]
[408852895,1774341642675,-1000.0,0.00047143,31]
[408852896,1774341642706,-1000.0,0.00047143,31]
[408852897,1774341642747,-1000.0,0.00047143,31]
[408852898,1774341642779,-1000.0,0.00047143,31]
[408852899,1774341642813,-1000.0,0.00047143,31]
[408852900,1774341642844,-1000.0,0.00047143,31]
[408852901,1774341642874,-1000.0,0.00047143,31]
[408852902,1774341642903,-1000.0,0.00047143,31]
[408852903,1774341642934,-1000.0,0.00047143,31]
[408852904,1774341642967,-200.0,0.00047143,31]
[408852905,1774341643845,-650.55802004,0.00047143,120]
[408852906,1774341643883,-432.34941481,0.00047143,30]
[408852907,1774341643922,-551.32465989,0.00047143,30]
[408852908,1774341643955,-412.2070197,0.00047143,30]
[408852909,1774341643988,-949.68149673,0.00047143,30]
[408852910,1774341644015,-801.22627004,0.00047143,30]
[408852911,1774341644049,-543.88459671,0.00047143,120]
[408852912,1774341644082,-771.90123133,0.00047143,30]
[408852913,1774341644111,-989.60541158,0.00047143,120]
[408852914,1774341644142,-929.99754075,0.00047143,30]
[408852915,1774341644171,-300.0,0.00047143,15]
[408852916,1774341644207,-939.08670554,0.00047143,30]
[408852917,1774341644237,-252.68989215,0.00047143,120]
[408852918,1774341644277,-946.17037986,0.00047143,30]
[408852919,1774341644324,-393.08933673,0.00047143,60]
[408852920,1774341644352,-434.80008481,0.00047143,120]
[408852921,1774341644382,-224.55498946,0.00047143,30]
[408852922,1774341644415,-195.70152759,0.00047143,120]
[408852923,1774341644445,-215.85981526,0.00047143,120]
[408852924,1774341644475,-500.0,0.00047143,120]
[408852925,1774341644508,-500.0,0.00047143,120]
[408852926,1774341644535,-500.0,0.00047143,120]
[408852927,1774341644565,-379.96188619,0.00047143,30]
[408852928,1774341644601,-500.0,0.00047143,120]
[408852929,1774341644630,-500.0,0.00047143,120]
[408852930,1774341644658,-500.0,0.00047143,120]
[408852931,1774341644687,-500.0,0.00047143,120]
[408852932,1774341644714,-500.0,0.00047143,120]
[408852933,1774341644750,-500.0,0.00047143,120]
[408852934,1774341644788,-500.0,0.00047143,120]
[408852935,1774341644821,-500.0,0.00047143,120]
[408852936,1774341644860,-500.0,0.00047143,120]
[408852937,1774341644889,-500.0,0.00047143,120]
[408852938,1774341644919,-486.09465204,0.00047143,120]
[408852939,1774341644947,-437.29036353,0.00047143,120]
[408852940,1774341644983,-366.71024634,0.00047143,30]
[408852941,1774341645016,-508.57847034,0.00047143,120]
[408852942,1774341645046,-782.74324375,0.00047143,120]
[408852943,1774341645075,-938.61771228,0.00047143,30]
[408852944,1774341645101,-446.97708234,0.00047143,120]
[408852945,1774341645130,-1967.99077335,0.00047143,120]
[408852946,1774341645180,-650.79085692,0.00047143,120]
[408852947,1774341645211,-173.39638858,0.00047143,120]
[408852948,1774341645244,-1347.3602367,0.00047143,120]
[408852949,1774341645278,-245.13257937,0.00047143,120]
[408852950,1774341645306,-194.97678546,0.00047143,120]
[408852951,1774341645339,-186.4613474,0.00047143,120]
[408852952,1774341645371,-773.51168671,0.00047143,120]
[408852953,1774341645407,-236.42902436,0.00047143,14]
[408852954,1774341645440,-2451.28381749,0.00047143,31]
[408852955,1774341645472,-259.6688049,0.00047143,120]
[408852956,1774341645514,-570.63037099,0.00047143,30]
[408852957,1774341645542,-997.0,0.00047143,30]
[408852958,1774341645569,-235.10326225,0.00047143,15]
[408852959,1774341645601,-268.90533059,0.00047143,120]
[408852960,1774341645639,-256.87360859,0.00047143,30]
[408852961,1774341645667,-4749.78154112,0.00047143,60]
[408852962,1774341645696,-208.31441988,0.00047143,120]
[408852963,1774341645725,-996.40708182,0.00047143,30]
[408852964,1774341645760,-420.69423614,0.00047143,120]
[408852965,1774341645797,-234.82195906,0.00047143,30]
[408852966,1774341645828,-874.86662225,0.00047143,120]
[408852967,1774341645863,-960.83398895,0.00047143,30]
[408852968,1774341645940,-337.6696476,0.00047143,120]
[408852969,1774341645968,-613.68687893,0.00047143,120]
[408852970,1774341645997,-271.66334181,0.00047143,120]
[408852971,1774341646025,-259.0169197,0.00047143,120]
[408852972,1774341646054,-297.05022543,0.00047143,30]
[408852973,1774341646083,-288.17504029,0.00047143,30]
[408852974,1774341646116,-619.22676727,0.00047143,30]
[408852975,1774341646146,-368.31188891,0.00047143,30]
[408852976,1774341646179,-622.43685303,0.00047143,120]
[408852977,1774341646214,-182.78768858,0.00047143,30]
[408852978,1774341646245,-260.76894422,0.00047143,120]
[408852979,1774341646278,-602.82162432,0.00047143,120]
[408852980,1774341646306,-997.70041406,0.00047143,30]
[408852981,1774341646335,-1524.58269,0.00047143,120]
[408852982,1774341646363,-1263.42858252,0.00047143,30]
[408852983,1774341646390,-329.84691598,0.00047143,120]
[408852984,1774341646417,-756.0,0.00047143,120]
[408852985,1774341646448,-446.62833021,0.00047143,120]
[408852986,1774341646477,-525.71091021,0.00047143,120]
[408852987,1774341646507,-183.5508833,0.00047143,120]
[408852988,1774341646538,-849.834724,0.00047143,120]
[408852989,1774341646568,-1105.59568194,0.00047143,15]
[408852990,1774341646596,-561.108924,0.00047143,120]
[408852991,1774341646637,-589.19417686,0.00047143,28]
[408852992,1774341646667,-609.95633291,0.00047143,120]
[408852993,1774341646705,-150.0,0.00047143,14]
[408852994,1774341646735,-1730.4620986,0.00047143,30]
[408852995,1774341646766,-199.95144534,0.00047143,120]
[408852996,1774341646801,-827.62384952,0.00047143,120]
[408852997,1774341646843,-278.97586289,0.00047143,120]
[408852998,1774341646886,-485.65525104,0.00047143,120]
[408852999,1774341646918,-500.0,0.00047143,120]
[408853000,1774341646950,-502.06649719,0.00047143,30]
[408853001,1774341646980,-799.8942107,0.00047143,30]
[408853002,1774341647010,-1840.70859875,0.00047143,120]
[408853003,1774341647048,-854.56656986,0.00047143,30]
[408853004,1774341647083,-904.60680441,0.00047143,120]
[408853005,1774341647120,-253.82298744,0.00047143,120]
[408853006,1774341647150,-585.47469074,0.00047143,120]
[408853007,1774341647192,-202.63890683,0.00047143,120]
[408853008,1774341647226,-489.39845603,0.00047143,120]
[408853009,1774341647256,-185.98101855,0.00047143,120]
[408853010,1774341647291,-158.26093761,0.00047143,120]
[408853011,1774341647320,-2400.23687328,0.00047143,30]
[408853012,1774341647350,-379.18423713,0.00047143,60]
[408853013,1774341647385,-288.19582029,0.00047143,60]
[408853014,1774341647417,-1406.05686321,0.00047143,30]
[408853015,1774341647452,-597.28,0.00047143,120]
[408853016,1774341647485,-584.84159775,0.00047143,60]
[408853017,1774341647524,-171.22000466,0.00047143,120]
[408853018,1774341647553,-198.49849,0.00047143,45]
[408853019,1774341647582,-178.85986,0.00047143,60]
[408853020,1774341647613,-218.42355319,0.00047143,120]
[408853021,1774341647643,-162.04153163,0.00047143,120]
[408853022,1774341647673,-210.76457403,0.00047143,120]
[408853023,1774341647705,-500.0,0.00047143,120]
[408853024,1774341647736,-500.0,0.00047143,120]
[408853025,1774341647769,-390.72659298,0.00047143,120]
[408853026,1774341647796,-284.35996345,0.00047143,60]
[408853027,1774341647824,-500.0,0.00047143,120]
[408853028,1774341647857,-500.0,0.00047143,120]
[408853029,1774341647885,-500.0,0.00047143,120]
[408853030,1774341647914,-500.0,0.00047143,120]
[408853031,1774341647945,-535.05405915,0.00047143,120]
[408853032,1774341647981,-1346.66969,0.00047143,30]
[408853033,1774341648017,-500.0,0.00047143,120]
[408853034,1774341648047,-181.36198675,0.00047143,30]
[408853035,1774341648074,-159.92396327,0.00047143,120]
[408853036,1774341648106,-204.00223538,0.00047143,120]
[408853037,1774341648143,-268.93593079,0.00047143,120]
[408853038,1774341648172,-184.7896089,0.00047143,120]
[408853039,1774341648207,-500.0,0.00047143,120]
[408853040,1774341648239,-154.00521293,0.00047143,120]
[408853041,1774341648283,-500.0,0.00047143,120]
[408853042,1774341648320,-500.0,0.00047143,120]
[408853043,1774341648362,-500.0,0.00047143,120]
[408853044,1774341648395,-500.0,0.00047143,120]
[408853045,1774341648426,-500.0,0.00047143,120]
[408853046,1774341648467,-500.0,0.00047143,120]
[408853047,1774341648501,-500.0,0.00047143,120]
[408853048,1774341648538,-500.0,0.00047143,120]
[408853049,1774341648570,-553.87822579,0.00047143,120]
[408853050,1774341648602,-875.46823345,0.00047143,60]
[408853051,1774341648636,-496.94080846,0.00047143,120]
[408853052,1774341648672,-1000.0,0.00047143,31]
[408853053,1774341648704,-589.23680274,0.00047143,31]
[408853054,1774341648734,-1000.0,0.00047143,31]
[408853055,1774341648764,-1000.0,0.00047143,31]
[408853056,1774341648801,-500.0,0.00047143,120]
[408853057,1774341648832,-264.94959918,0.00047143,120]
[408853058,1774341648861,-210.78507571,0.00047143,120]
[408853059,1774341648892,-638.65,0.00047143,120]
[408853060,1774341648922,-638.65,0.00047143,120]
[408853061,1774341648952,-638.65,0.00047143,120]
[408853062,1774341648991,-638.65,0.00047143,120]
[408853063,1774341649020,-638.65,0.00047143,120]
[408853064,1774341649177,-638.65,0.00047143,120]
[408853065,1774341649209,-638.65,0.00047143,120]
[408853066,1774341649238,-638.65,0.00047143,120]
[408853067,1774341649277,-638.65,0.00047143,120]
[408853068,1774341649307,-638.65,0.00047143,120]
[408853069,1774341649339,-638.65,0.00047143,120]
[408853070,1774341649368,-638.65,0.00047143,120]
[408853071,1774341649401,-638.65,0.00047143,120]
[408853072,1774341649438,-638.65,0.00047143,120]
[408853073,1774341649475,-638.65,0.00047143,120]
[408853074,1774341649510,-638.65,0.00047143,120]
[408853075,1774341649552,-638.65,0.00047143,120]
[408853076,1774341649583,-638.65,0.00047143,120]
[408853077,1774341649614,-638.65,0.00047143,120]
[408853078,1774341649658,-638.65,0.00047143,120]
[408853079,1774341649698,-638.65,0.00047143,120]
[408853080,1774341649730,-638.65,0.00047143,120]
[408853081,1774341649762,-638.65,0.00047143,120]
[408853082,1774341649796,-638.73433741,0.00047143,120]
[408853083,1774341649831,-500.0,0.00047143,120]
[408853084,1774341649864,-500.0,0.00047143,120]
[408853085,1774341649903,-500.0,0.00047143,120]
[408853086,1774341649932,-500.0,0.00047143,120]
[408853087,1774341649965,-500.0,0.00047143,120]
[408853088,1774341649994,-500.0,0.00047143,120]
[408853089,1774341650029,-316.1429454,0.00047143,120]
[408853090,1774341650062,-162.987656,0.00047143,120]
[408853091,1774341650097,-500.0,0.00047143,120]
[408853092,1774341650126,-500.0,0.00047143,120]
[408853093,1774341650164,-500.0,0.00047143,120]
[408853094,1774341650198,-500.0,0.00047143,120]
[408853095,1774341650238,-500.0,0.00047143,120]
[408853096,1774341650267,-500.0,0.00047143,120]
[408853097,1774341650295,-500.0,0.00047143,120]
[408853098,1774341650325,-500.0,0.00047143,120]
[408853099,1774341650360,-500.0,0.00047143,120]
[408853100,1774341650397,-500.0,0.00047143,120]
[408853101,1774341650426,-500.0,0.00047143,120]
[408853102,1774341650461,-500.0,0.00047143,120]
[408853103,1774341650496,-500.0,0.00047143,120]
[408853104,1774341650539,-463.08,0.00047143,120]
[408853105,1774341650569,-500.0,0.00047143,120]
[408853106,1774341650598,-169.6115776,0.00047143,30]
[408853107,1774341650634,-424.85439922,0.00047143,30]
[408853108,1774341650676,-2126.46440047,0.00047143,120]
[408853109,1774341650707,-2808.30521371,0.00047143,60]
[408853110,1774341650751,-1889.59174687,0.00047143,90]
[408853111,1774341650781,-1083.14479979,0.00047143,120]
[408853112,1774341650811,-903.81618543,0.00047143,120]
[408853113,1774341650844,-430.40403552,0.00047143,120]
[408853114,1774341650874,-2289.07936074,0.00047143,120]
[408853115,1774341650914,-838.55279421,0.00047143,30]
[408853116,1774341650948,-1428.6828759,0.00047143,30]
[408853117,1774341650985,-1244.07813594,0.00047143,120]
[408853118,1774341651015,-4246.33070704,0.00047143,120]
[408853119,1774341651048,-500.0,0.00047143,120]
[408853120,1774341651083,-500.0,0.00047143,120]
[408853121,1774341651118,-500.0,0.00047143,120]
[408853122,1774341651151,-500.0,0.00047143,120]
[408853123,1774341651191,-500.0,0.00047143,120]
[408853124,1774341651222,-500.0,0.00047143,120]
[408853125,1774341651266,-500.0,0.00047143,120]
[408853126,1774341651299,-646.28124848,0.00047143,120]
[408853127,1774341651330,-719.1561983,0.00047143,120]
[408853128,1774341651368,-500.0,0.00047143,120]
[408853129,1774341651405,-500.0,0.00047143,120]
[408853130,1774341651440,-500.0,0.00047143,120]
[408853131,1774341651469,-2448.05887192,0.00047143,30]
[408853132,1774341651501,-1548.02231804,0.00047143,120]
[408853133,1774341651537,-460.3071288,0.00047143,60]
[408853134,1774341651573,-1163.99388635,0.00047143,120]
[408853135,1774341651606,-1370.22811419,0.00047143,120]
[408853136,1774341651637,-975.10878822,0.00047143,120]
[408853137,1774341651670,-1481.34979984,0.00047143,120]
[408853138,1774341651721,-286.78562847,0.00047143,120]
[408853139,1774341651755,-3038.64257439,0.00047143,30]
[408853140,1774341651787,-649.28812584,0.00047143,120]
[408853141,1774341651825,-718.49894838,0.00047143,120]
[408853142,1774341651856,-1613.05861375,0.00047143,120]
[408853143,1774341651886,-1621.02312948,0.00047143,120]
[408853144,1774341651913,-680.61951443,0.00047143,120]
[408853145,1774341652199,-1001.65729946,0.00047143,30]
[408853146,1774341652234,-578.45748113,0.00047143,120]
[408853147,1774341652267,-981.01630584,0.00047143,120]
[408853148,1774341652303,-170.82257763,0.00047143,120]